[Event "*** Titled Tuesday 3|2 Blitz"]
[Site "Chess.com"]
[Date "2015.10.06"]
[Round "3"]
[White "kpio91"]
[Black "3f32"]
[Result "1-0"]
[WhiteElo "2500"]
[BlackElo "2276"]
[TimeControl "180+2"]
[EndTime "11:34:16 PDT"]
[Termination "kpio91 won by resignation"]

1. c4 {[%clk 0:03:01.9]} 1... Nf6 {[%clk 0:02:20.3]} 2. g3 {[%clk 0:03:00.7]}
2... e6 {[%clk 0:02:18.8]} 3. Nf3 {[%clk 0:02:59.9]} 3... d5 {[%clk 0:02:20]} 4.
b3 {[%clk 0:03:00.4]} 4... c5 {[%clk 0:02:19.9]} 5. Bg2 {[%clk 0:03:01.5]} 5...
Nc6 {[%clk 0:02:21.4]} 6. O-O {[%clk 0:03:02.9]} 6... d4 {[%clk 0:02:22.6]} 7.
e3 {[%clk 0:02:58.4]} 7... Bd6 {[%clk 0:02:17.4]} 8. exd4 {[%clk 0:02:55.1]}
8... cxd4 {[%clk 0:02:19]} 9. Re1 {[%clk 0:02:46]} 9... O-O {[%clk 0:02:15]} 10.
a3 {[%clk 0:02:47.1]} 10... a5 {[%clk 0:02:15.4]} 11. d3 {[%clk 0:02:48]} 11...
e5 {[%clk 0:02:16.3]} 12. Ra2 {[%clk 0:02:47.6]} 12... Bf5 {[%clk 0:02:16.7]}
13. Bg5 {[%clk 0:02:39]} 13... h6 {[%clk 0:02:13.4]} 14. Bxf6 {[%clk 0:02:37.4]}
14... Qxf6 {[%clk 0:02:15.3]} 15. Nh4 {[%clk 0:02:38.1]} 15... Bh7 {[%clk
0:02:15.2]} 16. Rae2 {[%clk 0:02:36]} 16... Rfe8 {[%clk 0:02:08.1]} 17. f4
{[%clk 0:02:25.6]} 17... Re7 {[%clk 0:01:40.6]} 18. f5 {[%clk 0:02:23.3]} 18...
Rae8 {[%clk 0:01:22]} 19. Nd2 {[%clk 0:02:22.3]} 19... Rc7 {[%clk 0:01:08.8]}
20. Ne4 {[%clk 0:02:19.7]} 20... Qd8 {[%clk 0:01:10.3]} 21. Rf2 {[%clk
0:02:07.8]} 21... Bxa3 {[%clk 0:01:07.4]} 22. f6 {[%clk 0:02:07.4]} 22... g5
{[%clk 0:00:57.2]} 23. Nf5 {[%clk 0:02:05.9]} 23... Bf8 {[%clk 0:00:57.2]} 24.
Qh5 {[%clk 0:02:04.6]} 24... Bg6 {[%clk 0:00:56]} 25. Nxh6+ {[%clk 0:02:02.4]}
25... Kh8 {[%clk 0:00:52.8]} 26. Nxf7+ {[%clk 0:02:01.9]} 26... Kg8 {[%clk
0:00:48]} 27. Qxg6+ {[%clk 0:02:02.5]} 1-0

[Event "*** Titled Tuesday 3|2 Blitz"]
[Site "Chess.com"]
[Date "2015.10.06"]
[Round "3"]
[White "alexsuper1987"]
[Black "eugeniusjr"]
[Result "1-0"]
[WhiteElo "2207"]
[BlackElo "1998"]
[TimeControl "180+2"]
[EndTime "11:34:27 PDT"]
[Termination "alexsuper1987 won by resignation"]

1. e4 {[%clk 0:03:01.9]} 1... c5 {[%clk 0:02:57.2]} 2. Nf3 {[%clk 0:03:02.1]}
2... g6 {[%clk 0:02:57.9]} 3. d4 {[%clk 0:03:03.3]} 3... cxd4 {[%clk 0:02:59.8]}
4. Nxd4 {[%clk 0:03:05.2]} 4... Nc6 {[%clk 0:03:01]} 5. Nc3 {[%clk 0:03:06.5]}
5... Bg7 {[%clk 0:03:01.7]} 6. Be3 {[%clk 0:03:08.2]} 6... Nf6 {[%clk
0:03:03.2]} 7. Bc4 {[%clk 0:03:09.6]} 7... O-O {[%clk 0:03:04.4]} 8. f3 {[%clk
0:03:11.2]} 8... Qb6 {[%clk 0:03:04.9]} 9. a3 {[%clk 0:03:12.8]} 9... Nxe4
{[%clk 0:02:57.2]} 10. Nd5 {[%clk 0:03:14]} 10... Qc5 {[%clk 0:02:36.8]} 11.
Nxc6 {[%clk 0:02:28]} 11... Qxc4 {[%clk 0:02:08.9]} 12. Ncxe7+ {[%clk
0:02:26.7]} 12... Kh8 {[%clk 0:02:08.7]} 13. fxe4 {[%clk 0:02:27.5]} 13... Bxb2
{[%clk 0:01:34.6]} 14. Rb1 {[%clk 0:02:27]} 14... Bg7 {[%clk 0:01:08.7]} 15. Qd3
{[%clk 0:02:26]} 15... Qa4 {[%clk 0:01:00.1]} 16. O-O {[%clk 0:02:08.7]} 16...
b6 {[%clk 0:01:00.8]} 17. Rb4 {[%clk 0:02:01.6]} 17... Qa5 {[%clk 0:00:52.3]}
18. Bd4 {[%clk 0:02:02.5]} 18... f6 {[%clk 0:00:38.9]} 19. Nxf6 {[%clk 0:01:43]}
19... Ba6 {[%clk 0:00:29.6]} 20. Nxg6+ {[%clk 0:01:38.4]} 1-0

[Event "*** Titled Tuesday 3|2 Blitz"]
[Site "Chess.com"]
[Date "2015.10.06"]
[Round "3"]
[White "Schemato"]
[Black "alturas_pacificas"]
[Result "1-0"]
[WhiteElo "2186"]
[BlackElo "2109"]
[TimeControl "180+2"]
[EndTime "11:35:42 PDT"]
[Termination "Schemato won by resignation"]

1. c4 {[%clk 0:03:01.9]} 1... c6 {[%clk 0:03:00.6]} 2. Nf3 {[%clk 0:03:02.1]}
2... d5 {[%clk 0:03:01.6]} 3. e3 {[%clk 0:03:03.4]} 3... Nf6 {[%clk 0:03:01.8]}
4. Nc3 {[%clk 0:03:04]} 4... g6 {[%clk 0:03:02.7]} 5. d4 {[%clk 0:03:04.2]} 5...
Bg7 {[%clk 0:03:04]} 6. Be2 {[%clk 0:03:05.1]} 6... O-O {[%clk 0:03:05.5]} 7.
O-O {[%clk 0:03:06]} 7... Nbd7 {[%clk 0:03:07]} 8. b3 {[%clk 0:03:06.5]} 8... e6
{[%clk 0:03:08]} 9. Bb2 {[%clk 0:03:07.7]} 9... b6 {[%clk 0:03:09.3]} 10. Qc2
{[%clk 0:03:05.6]} 10... Bb7 {[%clk 0:03:10.1]} 11. Rad1 {[%clk 0:03:02.7]}
11... Rc8 {[%clk 0:03:09.8]} 12. e4 {[%clk 0:02:59.8]} 12... dxe4 {[%clk
0:03:07.5]} 13. Nxe4 {[%clk 0:03:00.2]} 13... Nxe4 {[%clk 0:03:09]} 14. Qxe4
{[%clk 0:03:00.6]} 14... Qc7 {[%clk 0:03:09.9]} 15. Qb1 {[%clk 0:02:49.1]} 15...
c5 {[%clk 0:03:08.5]} 16. d5 {[%clk 0:02:44.2]} 16... exd5 {[%clk 0:03:08.1]}
17. Bxg7 {[%clk 0:02:41.4]} 17... Kxg7 {[%clk 0:03:08.2]} 18. cxd5 {[%clk
0:02:42.5]} 18... Qd6 {[%clk 0:03:02.1]} 19. Rd2 {[%clk 0:02:28.1]} 19... Nf6
{[%clk 0:03:01.2]} 20. Rfd1 {[%clk 0:02:26.6]} 20... Kg8 {[%clk 0:03:01.2]} 21.
Bc4 {[%clk 0:02:22.3]} 21... a6 {[%clk 0:03:01.5]} 22. a4 {[%clk 0:02:22.4]}
22... Rfd8 {[%clk 0:02:42.5]} 23. h3 {[%clk 0:02:20.9]} 23... Qd7 {[%clk
0:02:36.6]} 24. Ne5 {[%clk 0:02:14.5]} 24... Qd6 {[%clk 0:02:36.3]} 25. Qb2
{[%clk 0:02:12.9]} 25... Ne4 {[%clk 0:02:33.6]} 26. Re2 {[%clk 0:02:06.8]} 26...
f5 {[%clk 0:02:33.2]} 27. f3 {[%clk 0:01:50.9]} 27... Ng3 {[%clk 0:02:31.6]} 28.
Red2 {[%clk 0:01:45.9]} 28... Qf6 {[%clk 0:02:30.8]} 29. d6+ {[%clk 0:01:30.7]}
29... Kg7 {[%clk 0:02:31.7]} 30. Kh2 {[%clk 0:01:14.7]} 30... f4 {[%clk
0:02:31.8]} 31. Bd5 {[%clk 0:01:07.3]} 31... Bxd5 {[%clk 0:02:30.9]} 32. Rxd5
{[%clk 0:01:09.2]} 32... Nf5 {[%clk 0:02:31.6]} 33. Qd2 {[%clk 0:00:56]} 33...
g5 {[%clk 0:02:30.4]} 34. Ng4 {[%clk 0:00:52.7]} 34... Qf7 {[%clk 0:02:26.3]}
35. Qd3 {[%clk 0:00:51]} 35... Rf8 {[%clk 0:02:17.6]} 36. d7 {[%clk 0:00:50.4]}
36... Rcd8 {[%clk 0:02:18.6]} 37. Ne5 {[%clk 0:00:46.5]} 37... Qf6 {[%clk
0:02:16.2]} 38. Ng4 {[%clk 0:00:35.3]} 38... Qf7 {[%clk 0:02:16]} 39. Qc3+
{[%clk 0:00:33.3]} 39... Nd4 {[%clk 0:02:16.4]} 40. Rxg5+ {[%clk 0:00:32.2]}
40... Kh8 {[%clk 0:02:10.2]} 41. Rxd4 {[%clk 0:00:32.6]} 41... h6 {[%clk
0:02:05.4]} 42. Rd6+ {[%clk 0:00:29.4]} 1-0

[Event "*** Titled Tuesday 3|2 Blitz"]
[Site "Chess.com"]
[Date "2015.10.06"]
[Round "3"]
[White "PowerThinking2650"]
[Black "Nutflush"]
[Result "1-0"]
[WhiteElo "2079"]
[BlackElo "1947"]
[TimeControl "180+2"]
[EndTime "11:36:01 PDT"]
[Termination "PowerThinking2650 won by resignation"]

1. e4 {[%clk 0:03:01.9]} 1... c5 {[%clk 0:02:48.9]} 2. Nf3 {[%clk 0:03:02.6]}
2... Nc6 {[%clk 0:02:49]} 3. d4 {[%clk 0:03:03.9]} 3... cxd4 {[%clk 0:02:50.9]}
4. Nxd4 {[%clk 0:03:05.4]} 4... Nf6 {[%clk 0:02:52.4]} 5. Nc3 {[%clk 0:03:04.1]}
5... e5 {[%clk 0:02:53.5]} 6. Ndb5 {[%clk 0:03:05.3]} 6... d6 {[%clk 0:02:53.7]}
7. Bg5 {[%clk 0:03:04.7]} 7... a6 {[%clk 0:02:55]} 8. Na3 {[%clk 0:03:05.2]}
8... b5 {[%clk 0:02:56.4]} 9. Nd5 {[%clk 0:03:06.3]} 9... Be7 {[%clk 0:02:55.6]}
10. Bxf6 {[%clk 0:03:07.5]} 10... Bxf6 {[%clk 0:02:56.3]} 11. c3 {[%clk
0:03:09]} 11... O-O {[%clk 0:02:55.7]} 12. Nc2 {[%clk 0:03:09.3]} 12... Bg5
{[%clk 0:02:56.9]} 13. a4 {[%clk 0:03:08]} 13... bxa4 {[%clk 0:02:47.7]} 14.
Rxa4 {[%clk 0:03:08.9]} 14... a5 {[%clk 0:02:49.1]} 15. b3 {[%clk 0:03:09.2]}
15... Kh8 {[%clk 0:02:43.3]} 16. Nce3 {[%clk 0:03:07.1]} 16... Bxe3 {[%clk
0:02:42.2]} 17. Nxe3 {[%clk 0:03:06.9]} 17... Be6 {[%clk 0:02:41.2]} 18. Bc4
{[%clk 0:02:59.1]} 18... Ne7 {[%clk 0:02:16.7]} 19. O-O {[%clk 0:02:56.2]} 19...
g6 {[%clk 0:02:00.8]} 20. Bxe6 {[%clk 0:02:55.8]} 20... fxe6 {[%clk 0:01:59.9]}
21. Nc4 {[%clk 0:02:56.8]} 21... Ra6 {[%clk 0:01:51.5]} 22. Qa1 {[%clk
0:02:52.5]} 22... Qa8 {[%clk 0:01:37.1]} 23. Rxa5 {[%clk 0:02:48.3]} 23... Rxa5
{[%clk 0:01:33.8]} 24. Qxa5 {[%clk 0:02:49.2]} 24... Qxe4 {[%clk 0:01:34.9]} 25.
Nxd6 {[%clk 0:02:46.7]} 25... Qe2 {[%clk 0:01:14.7]} 26. Qc5 {[%clk 0:02:27.8]}
26... Nd5 {[%clk 0:01:06.6]} 27. Ne4 {[%clk 0:02:08.2]} 27... Rf5 {[%clk
0:00:35.6]} 28. Ng3 {[%clk 0:02:08.2]} 28... Qd3 {[%clk 0:00:18.2]} 29. Nxf5
{[%clk 0:02:05.8]} 29... gxf5 {[%clk 0:00:20.1]} 30. c4 {[%clk 0:02:06.8]} 30...
Nf6 {[%clk 0:00:16.3]} 31. Qxe5 {[%clk 0:02:06.7]} 31... Kg7 {[%clk 0:00:16.1]}
32. Qxe6 {[%clk 0:02:07.7]} 32... Ng4 {[%clk 0:00:14.7]} 33. h3 {[%clk
0:02:05.1]} 33... Nf6 {[%clk 0:00:14.1]} 34. c5 {[%clk 0:02:01]} 34... f4 {[%clk
0:00:14.4]} 35. Qd6 {[%clk 0:01:54.6]} 35... Ne4 {[%clk 0:00:06.7]} 36. Qxd3
{[%clk 0:01:54.5]} 1-0

[Event "*** Titled Tuesday 3|2 Blitz"]
[Site "Chess.com"]
[Date "2015.10.06"]
[Round "3"]
[White "IMRosen"]
[Black "Carolina-moon"]
[Result "1-0"]
[WhiteElo "2213"]
[BlackElo "2040"]
[TimeControl "180+2"]
[EndTime "11:36:19 PDT"]
[Termination "IMRosen won by resignation"]

1. c4 {[%clk 0:03:01.9]} 1... f5 {[%clk 0:03:00.2]} 2. g3 {[%clk 0:02:58.6]}
2... Nf6 {[%clk 0:03:01.5]} 3. Bg2 {[%clk 0:03:00.3]} 3... g6 {[%clk 0:03:02.9]}
4. b3 {[%clk 0:02:59.8]} 4... Bg7 {[%clk 0:03:04]} 5. Bb2 {[%clk 0:03:01.5]}
5... d6 {[%clk 0:03:03.1]} 6. e3 {[%clk 0:03:03.2]} 6... O-O {[%clk 0:03:03]} 7.
Ne2 {[%clk 0:03:04.8]} 7... e5 {[%clk 0:02:49.5]} 8. O-O {[%clk 0:03:05.6]} 8...
Nc6 {[%clk 0:02:36]} 9. f3 {[%clk 0:03:06.9]} 9... Be6 {[%clk 0:02:27.9]} 10. f4
{[%clk 0:03:08.3]} 10... d5 {[%clk 0:02:11.3]} 11. fxe5 {[%clk 0:03:08.7]} 11...
Ng4 {[%clk 0:02:11.9]} 12. Nf4 {[%clk 0:03:07.6]} 12... Bc8 {[%clk 0:01:08.6]}
13. h3 {[%clk 0:03:03.6]} 13... Ngxe5 {[%clk 0:01:08.4]} 14. d4 {[%clk
0:03:05.3]} 14... Nd7 {[%clk 0:00:36.6]} 15. Bxd5+ {[%clk 0:03:02.8]} 15... Kh8
{[%clk 0:00:37.1]} 16. Ne6 {[%clk 0:03:04.2]} 16... Qe7 {[%clk 0:00:37.6]} 17.
Nxf8 {[%clk 0:03:05.2]} 17... Qxf8 {[%clk 0:00:38.3]} 18. Qf3 {[%clk 0:03:04.9]}
18... Nb6 {[%clk 0:00:37.5]} 19. Nc3 {[%clk 0:03:04.8]} 19... Nxd5 {[%clk
0:00:38]} 20. Nxd5 {[%clk 0:03:06.7]} 20... Qf7 {[%clk 0:00:37.6]} 21. Nf4
{[%clk 0:03:07.6]} 21... Nb4 {[%clk 0:00:37]} 22. Rad1 {[%clk 0:03:07.9]} 22...
c6 {[%clk 0:00:35.3]} 23. a3 {[%clk 0:03:08.6]} 23... Na6 {[%clk 0:00:33.5]} 24.
Rf2 {[%clk 0:03:09.3]} 24... Bd7 {[%clk 0:00:33.2]} 25. d5 {[%clk 0:03:10.2]}
25... Bxb2 {[%clk 0:00:30]} 26. Rxb2 {[%clk 0:03:12.1]} 26... Qf6 {[%clk
0:00:28.5]} 27. Rbd2 {[%clk 0:03:12.7]} 27... c5 {[%clk 0:00:28.5]} 28. d6
{[%clk 0:03:13.9]} 28... Bc6 {[%clk 0:00:28.5]} 29. Qf2 {[%clk 0:03:15.4]} 29...
Re8 {[%clk 0:00:28.7]} 30. d7 {[%clk 0:03:14.8]} 30... Rd8 {[%clk 0:00:29.1]}
31. Rd6 {[%clk 0:03:16.5]} 31... Qe7 {[%clk 0:00:29.4]} 32. Qb2+ {[%clk
0:03:14.6]} 32... Kg8 {[%clk 0:00:29.6]} 33. Qf6 {[%clk 0:03:15.9]} 33... Rxd7
{[%clk 0:00:21.1]} 34. Qxe7 {[%clk 0:03:07.9]} 34... Rxe7 {[%clk 0:00:22.3]} 35.
Rd8+ {[%clk 0:03:07.8]} 35... Kf7 {[%clk 0:00:21.5]} 36. Kf2 {[%clk 0:03:09.7]}
36... Nc7 {[%clk 0:00:21.1]} 37. Rh8 {[%clk 0:03:09.9]} 37... Kg7 {[%clk
0:00:21.8]} 38. Rc8 {[%clk 0:03:08.5]} 38... Ne8 {[%clk 0:00:20.6]} 39. Rdd8
{[%clk 0:03:08.4]} 39... Nf6 {[%clk 0:00:21.4]} 40. b4 {[%clk 0:03:07.8]} 40...
cxb4 {[%clk 0:00:20.4]} 41. axb4 {[%clk 0:03:09.7]} 41... Ne4+ {[%clk
0:00:21.7]} 42. Ke1 {[%clk 0:03:11.1]} 42... Nxg3 {[%clk 0:00:21.2]} 43. Rg8+
{[%clk 0:03:11.9]} 43... Kh6 {[%clk 0:00:21.6]} 44. b5 {[%clk 0:03:08.8]} 44...
Bf3 {[%clk 0:00:19.7]} 45. Kf2 {[%clk 0:03:10]} 45... Ne4+ {[%clk 0:00:09.2]}
46. Kxf3 {[%clk 0:03:10.4]} 46... Rd7 {[%clk 0:00:10.3]} 47. Rce8 {[%clk
0:03:06.2]} 47... Rd2 {[%clk 0:00:11.1]} 48. Rxe4 {[%clk 0:03:07.6]} 48... fxe4+
{[%clk 0:00:12.2]} 49. Kxe4 {[%clk 0:03:09.5]} 49... Rc2 {[%clk 0:00:11.4]} 50.
Kd3 {[%clk 0:03:10.9]} 50... Rc1 {[%clk 0:00:12.3]} 51. Rb8 {[%clk 0:03:10.7]}
51... Rd1+ {[%clk 0:00:13.2]} 52. Ke2 {[%clk 0:03:11.6]} 52... Rd7 {[%clk
0:00:14.2]} 53. c5 {[%clk 0:03:12.3]} 53... g5 {[%clk 0:00:15.5]} 54. Ne6 {[%clk
0:03:11]} 54... Kg6 {[%clk 0:00:13.8]} 55. Nd4 {[%clk 0:03:12.3]} 55... h5
{[%clk 0:00:13.4]} 56. c6 {[%clk 0:03:13.9]} 56... bxc6 {[%clk 0:00:14.1]} 57.
bxc6 {[%clk 0:03:15.8]} 57... Rc7 {[%clk 0:00:12.8]} 58. Rb7 {[%clk 0:03:17.5]}
58... Rc8 {[%clk 0:00:13.1]} 59. c7 {[%clk 0:03:19]} 59... g4 {[%clk 0:00:13.8]}
60. hxg4 {[%clk 0:03:20.8]} 60... hxg4 {[%clk 0:00:15.2]} 61. Nb5 {[%clk
0:03:22.5]} 61... g3 {[%clk 0:00:14.4]} 62. Rb8 {[%clk 0:03:23.9]} 62... g2
{[%clk 0:00:13.8]} 63. Rxc8 {[%clk 0:03:25.4]} 63... Kf7 {[%clk 0:00:14.3]} 64.
Kf2 {[%clk 0:03:25.8]} 64... g1=Q+ {[%clk 0:00:14.9]} 65. Kxg1 {[%clk
0:03:27.5]} 65... a6 {[%clk 0:00:15.8]} 66. Rd8 {[%clk 0:03:27.8]} 66... Ke7
{[%clk 0:00:17.7]} 67. c8=Q {[%clk 0:03:28.9]} 67... axb5 {[%clk 0:00:18.8]} 68.
Rd7+ {[%clk 0:03:29.5]} 1-0

[Event "*** Titled Tuesday 3|2 Blitz"]
[Site "Chess.com"]
[Date "2015.10.06"]
[Round "3"]
[White "Zvonokchess"]
[Black "bugsbunny444"]
[Result "1-0"]
[WhiteElo "2549"]
[BlackElo "2299"]
[TimeControl "180+2"]
[EndTime "11:36:27 PDT"]
[Termination "Zvonokchess won on time"]

1. Nf3 {[%clk 0:03:01.9]} 1... d5 {[%clk 0:03:00.4]} 2. g3 {[%clk 0:03:03.1]}
2... Nc6 {[%clk 0:03:01.3]} 3. d4 {[%clk 0:03:03.1]} 3... Bf5 {[%clk 0:03:02.3]}
4. Bg2 {[%clk 0:03:03.4]} 4... Nb4 {[%clk 0:03:03.4]} 5. Na3 {[%clk 0:03:04.2]}
5... e6 {[%clk 0:03:03.9]} 6. O-O {[%clk 0:03:01.5]} 6... Nf6 {[%clk 0:03:05]}
7. Nh4 {[%clk 0:03:00.5]} 7... Bg4 {[%clk 0:02:59.1]} 8. c4 {[%clk 0:02:34.6]}
8... Be7 {[%clk 0:02:43.6]} 9. h3 {[%clk 0:02:30.6]} 9... Bh5 {[%clk 0:02:43.6]}
10. g4 {[%clk 0:02:32.1]} 10... Nd7 {[%clk 0:02:06.6]} 11. gxh5 {[%clk
0:02:11.7]} 11... Bxh4 {[%clk 0:02:07.2]} 12. Bd2 {[%clk 0:02:13]} 12... a5
{[%clk 0:01:43.8]} 13. cxd5 {[%clk 0:02:13.5]} 13... exd5 {[%clk 0:01:36.3]} 14.
Nc2 {[%clk 0:02:14.4]} 14... Nxc2 {[%clk 0:01:17.9]} 15. Qxc2 {[%clk 0:02:16.3]}
15... c6 {[%clk 0:01:00.6]} 16. h6 {[%clk 0:02:14.2]} 16... g6 {[%clk
0:00:55.8]} 17. e4 {[%clk 0:02:09.1]} 17... dxe4 {[%clk 0:00:32.8]} 18. Qxe4+
{[%clk 0:02:09.4]} 18... Qe7 {[%clk 0:00:34.3]} 19. Rae1 {[%clk 0:01:49]} 19...
Kf8 {[%clk 0:00:11.4]} 20. Qg4 {[%clk 0:01:49.2]} 20... Qd8 {[%clk 0:00:11.2]}
21. d5 {[%clk 0:01:44]} 21... c5 {[%clk 0:00:05.9]} 22. d6 {[%clk 0:01:40.7]}
22... Bf6 {[%clk 0:00:05.4]} 23. Bf4 {[%clk 0:01:09.2]} 23... Ra6 {[%clk
0:00:04.5]} 24. Bd5 {[%clk 0:01:06.7]} 24... Rb6 {[%clk 0:00:04.7]} 25. b3
{[%clk 0:01:06.9]} 25... Rb4 {[%clk 0:00:05.6]} 26. Qf3 {[%clk 0:01:00.7]} 26...
g5 {[%clk 0:00:04.2]} 27. Bg3 {[%clk 0:00:59.4]} 27... Rg8 {[%clk 0:00:04]} 28.
Bxf7 {[%clk 0:00:43.9]} 1-0

[Event "*** Titled Tuesday 3|2 Blitz"]
[Site "Chess.com"]
[Date "2015.10.06"]
[Round "3"]
[White "SenseiJulio"]
[Black "jefferyx"]
[Result "1-0"]
[WhiteElo "2567"]
[BlackElo "2532"]
[TimeControl "180+2"]
[EndTime "11:36:51 PDT"]
[Termination "SenseiJulio won by resignation"]

1. Nf3 {[%clk 0:03:01.9]} 1... c5 {[%clk 0:02:58.6]} 2. e3 {[%clk 0:02:55.8]}
2... Nf6 {[%clk 0:02:56.5]} 3. d4 {[%clk 0:02:56.8]} 3... cxd4 {[%clk
0:02:54.9]} 4. exd4 {[%clk 0:02:57]} 4... d5 {[%clk 0:02:50.2]} 5. c4 {[%clk
0:02:56.7]} 5... e6 {[%clk 0:02:27.8]} 6. Nc3 {[%clk 0:02:57.6]} 6... Bb4 {[%clk
0:02:23.1]} 7. Bd3 {[%clk 0:02:58.5]} 7... dxc4 {[%clk 0:02:23.1]} 8. Bxc4
{[%clk 0:03:00.4]} 8... O-O {[%clk 0:02:23]} 9. O-O {[%clk 0:03:01.9]} 9... b6
{[%clk 0:02:20.5]} 10. Bg5 {[%clk 0:02:55.6]} 10... Bb7 {[%clk 0:02:18.6]} 11.
Ne5 {[%clk 0:02:41.9]} 11... Be7 {[%clk 0:02:19.4]} 12. Re1 {[%clk 0:02:42.6]}
12... Nbd7 {[%clk 0:02:13.1]} 13. Nxf7 {[%clk 0:02:33.5]} 13... Rxf7 {[%clk
0:02:14]} 14. Bxe6 {[%clk 0:02:34.5]} 14... Qf8 {[%clk 0:01:37.6]} 15. Qb3
{[%clk 0:02:33.3]} 15... Re8 {[%clk 0:01:37.1]} 16. Nb5 {[%clk 0:02:13.3]} 16...
h6 {[%clk 0:01:09.7]} 17. Bxf6 {[%clk 0:01:46]} 17... Nxf6 {[%clk 0:01:10.5]}
18. Nc7 {[%clk 0:01:47.4]} 18... Rc8 {[%clk 0:00:48.3]} 19. Bxf7+ {[%clk
0:01:45.4]} 19... Qxf7 {[%clk 0:00:50.2]} 20. Rxe7 {[%clk 0:01:46.2]} 20... Qxb3
{[%clk 0:00:51.9]} 21. axb3 {[%clk 0:01:47.6]} 21... Kf8 {[%clk 0:00:53.6]} 22.
Rae1 {[%clk 0:01:44.5]} 22... Be4 {[%clk 0:00:47]} 23. R7xe4 {[%clk 0:01:30.9]}
23... Nxe4 {[%clk 0:00:48.9]} 24. Ne6+ {[%clk 0:01:32.1]} 24... Kf7 {[%clk
0:00:47.8]} 25. d5 {[%clk 0:01:16.9]} 25... Rc2 {[%clk 0:00:46.3]} 26. f3 {[%clk
0:01:16.9]} 26... Nd6 {[%clk 0:00:39.4]} 27. Nd8+ {[%clk 0:01:16.6]} 27... Kf8
{[%clk 0:00:40.7]} 28. Re6 {[%clk 0:00:59.6]} 28... Nb5 {[%clk 0:00:41.8]} 29.
Nc6 {[%clk 0:00:42]} 29... Rxb2 {[%clk 0:00:40.3]} 30. Re3 {[%clk 0:00:40.1]}
30... Rd2 {[%clk 0:00:40.1]} 31. Ne7 {[%clk 0:00:34.4]} 31... a5 {[%clk
0:00:32.8]} 32. h4 {[%clk 0:00:35.1]} 32... Nc7 {[%clk 0:00:33.4]} 33. Re5
{[%clk 0:00:29.7]} 33... b5 {[%clk 0:00:34.7]} 34. h5 {[%clk 0:00:27.5]} 34...
a4 {[%clk 0:00:35.2]} 35. bxa4 {[%clk 0:00:28.5]} 35... bxa4 {[%clk 0:00:37.1]}
36. Ng6+ {[%clk 0:00:29.9]} 36... Kg8 {[%clk 0:00:33.6]} 37. Rf5 {[%clk
0:00:31.1]} 1-0

[Event "*** Titled Tuesday 3|2 Blitz"]
[Site "Chess.com"]
[Date "2015.10.06"]
[Round "3"]
[White "Iball95"]
[Black "chessloveyou"]
[Result "1-0"]
[WhiteElo "2359"]
[BlackElo "2180"]
[TimeControl "180+2"]
[EndTime "11:37:01 PDT"]
[Termination "Iball95 won by checkmate"]

1. e4 {[%clk 0:02:59.8]} 1... c6 {[%clk 0:03:00.5]} 2. d4 {[%clk 0:02:59.5]}
2... d5 {[%clk 0:03:00.4]} 3. exd5 {[%clk 0:03:00.7]} 3... cxd5 {[%clk
0:02:55.9]} 4. c4 {[%clk 0:03:01.7]} 4... Nf6 {[%clk 0:02:55.6]} 5. Nc3 {[%clk
0:03:01.5]} 5... Nc6 {[%clk 0:02:55.3]} 6. Nf3 {[%clk 0:02:59.2]} 6... e6 {[%clk
0:02:47.5]} 7. c5 {[%clk 0:02:58.7]} 7... Be7 {[%clk 0:02:45]} 8. a3 {[%clk
0:02:53.3]} 8... Ne4 {[%clk 0:02:44.3]} 9. Bd3 {[%clk 0:02:48]} 9... Nxc3 {[%clk
0:02:44.4]} 10. bxc3 {[%clk 0:02:48.3]} 10... b6 {[%clk 0:02:44.3]} 11. cxb6
{[%clk 0:02:48.1]} 11... axb6 {[%clk 0:02:38.9]} 12. O-O {[%clk 0:02:44.6]}
12... O-O {[%clk 0:02:39.1]} 13. Re1 {[%clk 0:02:45.2]} 13... Ba6 {[%clk
0:02:37.8]} 14. Bb1 {[%clk 0:02:41.4]} 14... Bc4 {[%clk 0:02:36]} 15. Bf4 {[%clk
0:02:37.6]} 15... Bf6 {[%clk 0:02:08.8]} 16. Re3 {[%clk 0:02:02.4]} 16... Qe7
{[%clk 0:02:00.4]} 17. h4 {[%clk 0:01:49.4]} 17... Rxa3 {[%clk 0:01:36.1]} 18.
Rxa3 {[%clk 0:01:48.3]} 18... Qxa3 {[%clk 0:01:36]} 19. Ng5 {[%clk 0:01:33.8]}
19... Bxg5 {[%clk 0:01:29]} 20. hxg5 {[%clk 0:01:16.5]} 20... Qb3 {[%clk
0:01:05.9]} 21. Bxh7+ {[%clk 0:00:46.3]} 21... Kxh7 {[%clk 0:00:55.9]} 22. Qh5+
{[%clk 0:00:47.6]} 22... Kg8 {[%clk 0:00:56.4]} 23. Rh3 {[%clk 0:00:48.6]} 23...
Qb1+ {[%clk 0:00:48.4]} 24. Kh2 {[%clk 0:00:48.9]} 24... f6 {[%clk 0:00:12]} 25.
g6 {[%clk 0:00:47.9]} 25... Qxg6 {[%clk 0:00:08]} 26. Qxg6 {[%clk 0:00:47.5]}
26... Ne7 {[%clk 0:00:07.2]} 27. Qh7+ {[%clk 0:00:45.4]} 27... Kf7 {[%clk
0:00:07.9]} 28. Bd6 {[%clk 0:00:46.1]} 28... Re8 {[%clk 0:00:07.7]} 29. Bxe7
{[%clk 0:00:46.5]} 29... Rxe7 {[%clk 0:00:08.9]} 30. Rg3 {[%clk 0:00:47.6]}
30... Ke8 {[%clk 0:00:08.7]} 31. Rxg7 {[%clk 0:00:47.9]} 31... Rxg7 {[%clk
0:00:10.3]} 32. Qxg7 {[%clk 0:00:49.8]} 32... f5 {[%clk 0:00:12.2]} 33. Qe5
{[%clk 0:00:48.2]} 33... b5 {[%clk 0:00:12.6]} 34. Qxe6+ {[%clk 0:00:48.2]}
34... Kd8 {[%clk 0:00:10.6]} 35. Qxf5 {[%clk 0:00:48.1]} 35... Kc7 {[%clk
0:00:11.2]} 36. Qf8 {[%clk 0:00:47.8]} 36... Kb6 {[%clk 0:00:12.1]} 37. Qc5+
{[%clk 0:00:49.1]} 37... Ka5 {[%clk 0:00:13.2]} 38. g4 {[%clk 0:00:51]} 38...
Ka4 {[%clk 0:00:13.8]} 39. Qb4# {[%clk 0:00:51.1]} 1-0